Workbook

Sheet Summary
B1: Lower | C1: Moderate | D1: Above Moderate | E1: Total
A2: RHNA | B2: 1000 | C2: 1000 | D2: 1000 | E2: =SUM(B2:D2) -> 3000
A3: 1. Remaining Capacity on HE Sites | B3: =SUM('1. Sites Inventory'!B:B,'1. Sites Inventory'!K:K) -> 1167 | C3: =SUM('1. Sites Inventory'!C:C,'1. Sites Inventory'!L:L) -> 727 | D3: =SUM('1. Sites Inventory'!D:D,'1. Sites Inventory'!M:M) -> 2014 | E3: 3908
A4: 2. Planned and Approved Projects from HE | B4: =SUM('2. Planned Projects'!I:I) -> 1 | C4: =SUM('2. Planned Projects'!J:J) -> 1 | D4: =SUM('2. Planned Projects'!K:K) -> 1 | E4: =SUM(B4:D4) -> 3
A5: 3. Development Activity on Sites Not in HE | B5: =SUM('3. Development on Other Sites'!D:D) -> 1 | C5: =SUM('3. Development on Other Sites'!E:E) -> 1 | D5: =SUM('3. Development on Other Sites'!F:F) -> 1 | E5: 3
A6: 4. Rezoned Sites (if applicable) | B6: =SUM('4. Rezoned Sites'!B:B,'4. Rezoned Sites'!K:K) -> 1 | C6: =SUM('4. Rezoned Sites'!C:C,'4. Rezoned Sites'!L:L) -> 1 | D6: =SUM('4. Rezoned Sites'!D:D,'4. Rezoned Sites'!M:M) -> 1 | E6: =SUM(B6:D6) -> 3
A7: 5a. ADU Projection | B7: ='5. ADUs'!B3 -> 0 | C7: ='5. ADUs'!C3 -> 0 | D7: ='5. ADUs'!D3 -> 0 | E7: 0
A8: 5b. ADU Production Above Projection | B8: =IF('5. ADUs'!B16="",0,'5. ADUs'!B16) -> 1 | C8: =IF('5. ADUs'!C16="",0,'5. ADUs'!C16) -> 1 | D8: =IF('5. ADUs'!D16="",0,'5. ADUs'!D16) -> 1 | E8: 3
A9: Total Capacity | B9: =SUM(B3:B8) -> 1171 | C9: =SUM(C3:C8) -> 731 | D9: 2018 | E9: 3920
A10: Surplus/Deficit | B10: =B9-B2 -> 171 | C10: =C9-C2 -> -269 | D10: =D9-D2 -> 1018 | E10: =E9-E2 -> 920
A12: Progress Toward Meeting RHNA (Completed Projects) | B12: =SUMIF('1. Sites Inventory'!F:F,"Completed Project",'1. Sites Inventory'!G:G)+SUMIF('2. Planned Projects'!H:H,"Completed Project",'2. Planned Projects'!I:I)+SUM('3. Development on Other Sites'!D:D)+SUMIF('4. Rezoned Sites'!F:F,"Completed Project",'4. Rezoned Sites'!G:G)+'5. ADUs'!B15 -> 5 | C12: =SUMIF('1. Sites Inventory'!F:F,"Completed Project",'1. Sites Inventory'!H:H)+SUMIF('2. Planned Projects'!H:H,"Completed Project",'2. Planned Projects'!J:J)+SUM('3. Development on Other Sites'!E:E)+SUMIF('4. Rezoned Sites'!F:F,"Completed Project",'4. Rezoned Sites'!H:H)+'5. ADUs'!C15 -> 5 | D12: =SUMIF('1. Sites Inventory'!F:F,"Completed Project",'1. Sites Inventory'!I:I)+SUMIF('2. Planned Projects'!H:H,"Completed Project",'2. Planned Projects'!K:K)+SUM('3. Development on Other Sites'!F:F)+SUMIF('4. Rezoned Sites'!F:F,"Completed Project",'4. Rezoned Sites'!I:I)+'5. ADUs'!D15 -> 5 | E12: =SUM(B12:D12) -> 15
A13: Remaining RHNA | B13: =SUM(B7:B12) -> 1348 | C13: =SUM(C7:C12) -> 468 | D13: 3042 | E13: 4858

Sheet 1. Sites Inventory
A1: ORIGINAL SITES INVENTORY | B1: Capacity Counted in Housing Element (DO NOT EDIT) | G1: Current Entitlement | K1: Difference From Original Inventoried Capacity
A2: Assessor Parcel Number | B2: Lower Income Capacity | C2: Moderate Income Capacity | D2: Above Moderate Income Capacity | E2: Total Capacity | F2: Site Status | G2: Planned and Approved Lower Income | H2: Planned and Approved Moderate Income | I2: Planned and Approved Above Moderate Income | J2: Total Planned and Approved | K2: Net Capacity Lower Income | L2: Net Capacity Moderate Income | M2: Net Capacity Above Moderate Income | N2: Total Net Capacity | O2: Notes (APN Change, Project Name, etc.)
A3: 068-051-015-3 | B3: 0 | C3: 3 | D3: 3 | E3: =SUM(B3:D3) -> 6 | F3: Pending Project | G3: 0 | H3: 0 | I3: 0 | J3: 0 | K3: =IF($F3<>"Available", G3-B3, "") -> 0 | L3: =IF($F3<>"Available", H3-C3, "") -> -3 | M3: =IF($F3<>"Available", I3-D3, "") -> -3 | N3: =IF($F3<>"Available", J3-E3, "") -> -6
A4: 068-051-049-2 | B4: 0 | C4: 3 | D4: 3 | E4: =SUM(B4:D4) -> 6 | F4: Completed Project | G4: 1 | H4: 1 | I4: 1 | J4: 0 | K4: 1 | L4: -2 | M4: -2 | N4: -6
A5: 068-051-050-0 | B5: 0 | C5: 0 | D5: 0 | E5: 0 | F5: Available | G5: 0 | H5: 0 | I5: 0 | J5: =G5+H5+I5 -> 0
A6: 068-252-041-6 | B6: 15 | C6: 6 | D6: 16 | E6: 37 | F6: Available | G6: 0 | H6: 0 | I6: 0 | J6: 0
A7: 068-252-043-2 | B7: 0 | C7: 0 | D7: 0 | E7: 0 | F7: Available | G7: 0 | H7: 0 | I7: 0 | J7: 0
A8: 068-252-042-4 | B8: 0 | C8: 0 | D8: 0 | E8: 0 | F8: Available | G8: 0 | H8: 0 | I8: 0 | J8: 0
A9: 068-252-045-7 | B9: 0 | C9: 0 | D9: 0 | E9: 0 | F9: Available | G9: 0 | H9: 0 | I9: 0 | J9: 0
A10: 072-400-039-3 | B10: 20 | C10: 8 | D10: 21 | E10: 49 | F10: Available | G10: 0 | H10: 0 | I10: 0 | J10: 0
A11: 072-400-040-1 | B11: 0 | C11: 2 | D11: 2 | E11: 4 | F11: Available | G11: 0 | H11: 0 | I11: 0 | J11: 0
A12: 072-400-036-9 | B12: 20 | C12: 8 | D12: 21 | E12: 49 | F12: Available | G12: 0 | H12: 0 | I12: 0 | J12: 0
A13: 065-122-023-8 | B13: 16 | C13: 6 | D13: 16 | E13: 38 | F13: Available | G13: 0 | H13: 0 | I13: 0 | J13: 0
A14: 065-122-028-7 | B14: 5 | C14: 2 | D14: 6 | E14: 13 | F14: Available | G14: 0 | H14: 0 | I14: 0 | J14: 0
A15: 065-122-029-5 | B15: 17 | C15: 6 | D15: 17 | E15: 40 | F15: Available | G15: 0 | H15: 0 | I15: 0 | J15: 0
A16: 065-122-030-3 | B16: 20 | C16: 8 | D16: 22 | E16: 50 | F16: Available | G16: 0 | H16: 0 | I16: 0 | J16: 0
A17: 051-390-001-9 | B17: 0 | C17: 0 | D17: 0 | E17: 0 | F17: Available | G17: 0 | H17: 0 | I17: 0 | J17: 0
A18: 051-390-002-7 | B18: 0 | C18: 0 | D18: 0 | E18: 0 | F18: Available | G18: 0 | H18: 0 | I18: 0 | J18: 0
A19: 051-390-003-5 | B19: 0 | C19: 0 | D19: 0 | E19: 0 | F19: Available | G19: 0 | H19: 0 | I19: 0 | J19: 0
A20: 051-390-004-3 | B20: 0 | C20: 0 | D20: 0 | E20: 0 | F20: Available | G20: 0 | H20: 0 | I20: 0 | J20: 0
A21: 051-390-005-0 | B21: 0 | C21: 0 | D21: 0 | E21: 0 | F21: Available | G21: 0 | H21: 0 | I21: 0 | J21: 0
A22: 051-390-006-8 | B22: 30 | C22: 12 | D22: 31 | E22: 73 | F22: Available | G22: 0 | H22: 0 | I22: 0 | J22: 0
A23: 051-390-009-2 | B23: 0 | C23: 0 | D23: 0 | E23: 0 | F23: Available | G23: 0 | H23: 0 | I23: 0 | J23: 0
A24: 051-390-010-0 | B24: 0 | C24: 0 | D24: 0 | E24: 0 | F24: Available | G24: 0 | H24: 0 | I24: 0 | J24: 0
A25: 051-390-011-8 | B25: 0 | C25: 0 | D25: 0 | E25: 0 | F25: Available | G25: 0 | H25: 0 | I25: 0 | J25: 0
A26: 051-390-016-7 | B26: 0 | C26: 0 | D26: 0 | E26: 0 | F26: Available | G26: 0 | H26: 0 | I26: 0 | J26: 0
A27: 051-120-021-4 | B27: 0 | C27: 0 | D27: 7 | E27: 7 | F27: Available | G27: 0 | H27: 0 | I27: 0 | J27: 0
A28: 051-200-065-4 | B28: 41 | C28: 16 | D28: 42 | E28: 99 | F28: Available | G28: 0 | H28: 0 | I28: 0 | J28: 0
A29: 056-130-014-6 | B29: 19 | C29: 7 | D29: 20 | E29: 46 | F29: Available | G29: 0 | H29: 0 | I29: 0 | J29: 0
A30: 068-251-012 | B30: 8 | C30: 3 | D30: 9 | E30: 20 | F30: Available | G30: 0 | H30: 0 | I30: 0 | J30: 0
A31: 071-130-026-9 | B31: 29 | C31: 11 | D31: 30 | E31: 70 | F31: Available | G31: 0 | H31: 0 | I31: 0 | J31: 0
A32: 071-370-026-8 | B32: 0 | C32: 8 | D32: 8 | E32: 16 | F32: Available | G32: 0 | H32: 0 | I32: 0 | J32: 0
A33: 076-231-007-6 | B33: 14 | C33: 6 | D33: 15 | E33: 35 | F33: Available | G33: 0 | H33: 0 | I33: 0 | J33: 0
A34: 051-130-002-2 | B34: 0 | C34: 0 | D34: 6 | E34: 6 | F34: Available | G34: 0 | H34: 0 | I34: 0 | J34: 0
A35: 065-161-025-5 | B35: 0 | C35: 1 | D35: 1 | E35: 2 | F35: Available | G35: 0 | H35: 0 | I35: 0 | J35: 0 | K35: =IF($F35<>"Available", G35-B35, "") ->  | L35: =IF($F35<>"Available", H35-C35, "") ->  | M35: =IF($F35<>"Available", I35-D35, "") ->  | N35: =IF($F35<>"Available", J35-E35, "") -> 
A36: 051-120-020-6 | B36: 0 | C36: 0 | D36: 8 | E36: 8 | F36: Available | G36: 0 | H36: 0 | I36: 0 | J36: 0
A37: 051-120-024-8 | B37: 0 | C37: 0 | D37: 6 | E37: 6 | F37: Available | G37: 0 | H37: 0 | I37: 0 | J37: 0
A38: 051-120-025-5 | B38: 0 | C38: 0 | D38: 6 | E38: 6 | F38: Available | G38: 0 | H38: 0 | I38: 0 | J38: 0
A39: 051-130-001-4 | B39: 0 | C39: 0 | D39: 6 | E39: 6 | F39: Available | G39: 0 | H39: 0 | I39: 0 | J39: 0
A40: 051-140-001-2 | B40: 0 | C40: 0 | D40: 10 | E40: 10 | F40: Available | G40: 0 | H40: 0 | I40: 0 | J40: 0
A41: 051-140-003-8 | B41: 0 | C41: 0 | D41: 7 | E41: 7 | F41: Available | G41: 0 | H41: 0 | I41: 0 | J41: 0
A42: 051-140-006-1 | B42: 0 | C42: 0 | D42: 5 | E42: 5 | F42: Available | G42: 0 | H42: 0 | I42: 0 | J42: 0
A43: 051-140-007-9 | B43: 0 | C43: 0 | D43: 5 | E43: 5 | F43: Available | G43: 0 | H43: 0 | I43: 0 | J43: 0
A44: 051-140-012-9 | B44: 0 | C44: 0 | D44: 6 | E44: 6 | F44: Available | G44: 0 | H44: 0 | I44: 0 | J44: 0
A45: 051-140-013-7 | B45: 0 | C45: 0 | D45: 6 | E45: 6 | F45: Available | G45: 0 | H45: 0 | I45: 0 | J45: 0
A46: 051-140-014-5 | B46: 0 | C46: 0 | D46: 3 | E46: 3 | F46: Available | G46: 0 | H46: 0 | I46: 0 | J46: 0
A47: 051-140-015-2 | B47: 0 | C47: 0 | D47: 5 | E47: 5 | F47: Available | G47: 0 | H47: 0 | I47: 0 | J47: 0
A48: 051-140-019-4 | B48: 0 | C48: 0 | D48: 2 | E48: 2 | F48: Available | G48: 0 | H48: 0 | I48: 0 | J48: 0
A49: 051-140-020-2 | B49: 0 | C49: 0 | D49: 2 | E49: 2 | F49: Available | G49: 0 | H49: 0 | I49: 0 | J49: 0
A50: 051-140-025-1 | B50: 0 | C50: 0 | D50: 6 | E50: 6 | F50: Available | G50: 0 | H50: 0 | I50: 0 | J50: 0
A51: 051-140-026-9 | B51: 0 | C51: 0 | D51: 11 | E51: 11 | F51: Available | G51: 0 | H51: 0 | I51: 0 | J51: 0
A52: 051-140-027-7 | B52: 0 | C52: 0 | D52: 2 | E52: 2 | F52: Available | G52: 0 | H52: 0 | I52: 0 | J52: 0
A53: 051-140-028-5 | B53: 0 | C53: 0 | D53: 2 | E53: 2 | F53: Available | G53: 0 | H53: 0 | I53: 0 | J53: 0
A54: 051-140-035-0 | B54: 0 | C54: 0 | D54: 5 | E54: 5 | F54: Available | G54: 0 | H54: 0 | I54: 0 | J54: 0
A55: 051-200-037-3 | B55: 44 | C55: 17 | D55: 46 | E55: 107 | F55: Available | G55: 0 | H55: 0 | I55: 0 | J55: 0
A56: 052-042-037-3 | B56: 44 | C56: 17 | D56: 46 | E56: 107 | F56: Available | G56: 0 | H56: 0 | I56: 0 | J56: 0
A57: 052-042-044-9 | B57: 16 | C57: 6 | D57: 17 | E57: 39 | F57: Available | G57: 0 | H57: 0 | I57: 0 | J57: 0
A58: 052-061-014-8 | B58: 9 | C58: 4 | D58: 10 | E58: 23 | F58: Available | G58: 0 | H58: 0 | I58: 0 | J58: 0
A59: 052-061-053-6 | B59: 50 | C59: 20 | D59: 52 | E59: 122 | F59: Available | G59: 0 | H59: 0 | I59: 0 | J59: 0
A60: 056-120-096-5 | B60: 33 | C60: 13 | D60: 34 | E60: 80 | F60: Available | G60: 0 | H60: 0 | I60: 0 | J60: 0
A61: 056-130-011-2 | B61: 52 | C61: 20 | D61: 53 | E61: 125 | F61: Available | G61: 0 | H61: 0 | I61: 0 | J61: 0
A62: 065-071-020-5 | B62: 0 | C62: 1 | D62: 1 | E62: 2 | F62: Available | G62: 0 | H62: 0 | I62: 0 | J62: 0
A63: 065-110-007-5 | B63: 25 | C63: 10 | D63: 26 | E63: 61 | F63: Available | G63: 0 | H63: 0 | I63: 0 | J63: 0
A64: 068-091-043-7 | B64: 8 | C64: 3 | D64: 8 | E64: 19 | F64: Available | G64: 0 | H64: 0 | I64: 0 | J64: 0
A65: 072-011-067-5 | B65: 42 | C65: 17 | D65: 44 | E65: 103 | F65: Available | G65: 0 | H65: 0 | I65: 0 | J65: 0
A66: 051-100-022-6 | B66: 0 | C66: 24 | D66: 24 | E66: 48 | F66: Available | G66: 0 | H66: 0 | I66: 0 | J66: 0
A67: 051-200-038-1 | B67: 50 | C67: 20 | D67: 52 | E67: 122 | F67: Available | G67: 0 | H67: 0 | I67: 0 | J67: 0 | K67: =IF($F67<>"Available", G67-B67, "") ->  | L67: =IF($F67<>"Available", H67-C67, "") ->  | M67: =IF($F67<>"Available", I67-D67, "") ->  | N67: =IF($F67<>"Available", J67-E67, "") -> 
A68: 051-200-039-9 | B68: 58 | C68: 23 | D68: 60 | E68: =SUM(B68:D68) -> 141 | F68: Available | G68: 0 | H68: 0 | I68: 0 | J68: =G68+H68+I68 -> 0
A69: 051-200-076-1 | B69: 11 | C69: 4 | D69: 11 | E69: 26 | F69: Available | G69: 0 | H69: 0 | I69: 0 | J69: 0
A70: 051-230-028-6 | B70: 12 | C70: 5 | D70: 13 | E70: 30 | F70: Available | G70: 0 | H70: 0 | I70: 0 | J70: 0
A71: 052-140-013-5 | B71: 0 | C71: 41 | D71: 41 | E71: 82 | F71: Available | G71: 0 | H71: 0 | I71: 0 | J71: 0
A72: 052-140-014-3 | B72: 0 | C72: 39 | D72: 39 | E72: 78 | F72: Available | G72: 0 | H72: 0 | I72: 0 | J72: 0
A73: 052-140-015-0 | B73: 0 | C73: 9 | D73: 9 | E73: 18 | F73: Available | G73: 0 | H73: 0 | I73: 0 | J73: 0
A74: 052-140-016-8 | B74: 0 | C74: 13 | D74: 13 | E74: 26 | F74: Available | G74: 0 | H74: 0 | I74: 0 | J74: 0
A75: 052-342-010-7 | B75: 38 | C75: 15 | D75: 39 | E75: 92 | F75: Available | G75: 0 | H75: 0 | I75: 0 | J75: 0
A76: 052-370-009-4 | B76: 21 | C76: 8 | D76: 22 | E76: 51 | F76: Available | G76: 0 | H76: 0 | I76: 0 | J76: 0
A77: 053-060-063-4 | B77: 0 | C77: 0 | D77: 216 | E77: 216 | F77: Available | G77: 0 | H77: 0 | I77: 0 | J77: 0
A78: 055-071-106-3 | B78: 36 | C78: 14 | D78: 38 | E78: 88 | F78: Available | G78: 0 | H78: 0 | I78: 0 | J78: 0
A79: 055-071-107-1 | B79: 23 | C79: 9 | D79: 24 | E79: 56 | F79: Available | G79: 0 | H79: 0 | I79: 0 | J79: 0
A80: 055-071-108-9 | B80: 98 | C80: 38 | D80: 100 | E80: 236 | F80: Available | G80: 0 | H80: 0 | I80: 0 | J80: 0
A81: 055-071-113-9 | B81: 0 | C81: 5 | D81: 5 | E81: 10 | F81: Available | G81: 0 | H81: 0 | I81: 0 | J81: 0
A82: 056-120-098-1 | B82: 0 | C82: 0 | D82: 134 | E82: 134 | F82: Available | G82: 0 | H82: 0 | I82: 0 | J82: 0
A83: 065-110-006-7 | B83: 4 | C83: 0 | D83: 70 | E83: 74 | F83: Available | G83: 0 | H83: 0 | I83: 0 | J83: 0
A84: 065-262-026-1 | B84: 0 | C84: 10 | D84: 10 | E84: 20 | F84: Available | G84: 0 | H84: 0 | I84: 0 | J84: 0
A85: 065-262-035-2 | B85: 0 | C85: 5 | D85: 5 | E85: 10 | F85: Available | G85: 0 | H85: 0 | I85: 0 | J85: 0
A86: 067-103-017-9 | B86: 0 | C86: 10 | D86: 10 | E86: 20 | F86: Available | G86: 0 | H86: 0 | I86: 0 | J86: 0
A87: 068-082-057-8 | B87: 0 | C87: 3 | D87: 3 | E87: 6 | F87: Available | G87: 0 | H87: 0 | I87: 0 | J87: 0
A88: 072-450-013-7 | B88: 14 | C88: 6 | D88: 15 | E88: 35 | F88: Available | G88: 0 | H88: 0 | I88: 0 | J88: 0
A89: 074-080-026-3 | B89: 126 | C89: 50 | D89: 129 | E89: 305 | F89: Available | G89: 0 | H89: 0 | I89: 0 | J89: 0
A90: 074-080-028-9 | B90: 0 | C90: 6 | D90: 6 | E90: 12 | F90: Available | G90: 0 | H90: 0 | I90: 0 | J90: 0
A91: 074-080-029-7 | B91: 11 | C91: 4 | D91: 11 | E91: 26 | F91: Available | G91: 0 | H91: 0 | I91: 0 | J91: 0
A92: 074-080-030-5 | B92: 56 | C92: 22 | D92: 58 | E92: 136 | F92: Available | G92: 0 | H92: 0 | I92: 0 | J92: 0
A93: 074-122-016-4 | B93: 0 | C93: 4 | D93: 4 | E93: 8 | F93: Available | G93: 0 | H93: 0 | I93: 0 | J93: 0
A94: 074-123-004-9 | B94: 17 | C94: 7 | D94: 18 | E94: 42 | F94: Available | G94: 0 | H94: 0 | I94: 0 | J94: 0
A95: 074-123-005-6 | B95: 14 | C95: 5 | D95: 15 | E95: 34 | F95: Available | G95: 0 | H95: 0 | I95: 0 | J95: 0
A96: 074-343-034-0 | B96: 0 | C96: 9 | D96: 9 | E96: 18 | F96: Available | G96: 0 | H96: 0 | I96: 0 | J96: 0
A97: 075-460-001-3 | B97: 0 | C97: 31 | D97: 31 | E97: 62 | F97: Available | G97: 0 | H97: 0 | I97: 0 | J97: 0
A98: 076-010-039-6 | B98: 0 | C98: 38 | D98: 38 | E98: 76 | F98: Available | G98: 0 | H98: 0 | I98: 0 | J98: 0
A99: 051-400-027-2 | B99: 0 | C99: 9 | D99: 9 | E99: 18 | F99: Available | G99: 0 | H99: 0 | I99: 0 | J99: 0
A100: 053-060-055-0 | B100: 0 | C100: 0 | D100: 0 | E100: 0 | F100: Available | G100: 0 | H100: 0 | I100: 0 | J100: 0
A101: 053-060-056-8 | B101: 0 | C101: 0 | D101: 0 | E101: 0 | F101: Available | G101: 0 | H101: 0 | I101: 0 | J101: 0
A102: 053-060-057-6 | B102: 0 | C102: 0 | D102: 0 | E102: 0 | F102: Available | G102: 0 | H102: 0 | I102: 0 | J102: 0
A103: 067-093-022-1 | B103: 0 | C103: 2 | D103: 2 | E103: 4 | F103: Available | G103: 0 | H103: 0 | I103: 0 | J103: 0

Sheet 2. Planned Projects
A1: PLANNED AND APPROVED PROJECT LIST FROM HOUSING ELEMENT
D2: Capacity Counted in Housing Element (DO NOT EDIT) | I2: Current Entitlement | M2: Difference From Original Inventoried Capacity
A3: Assessor Parcel Number | B3: Address | C3: Project Name | D3: Lower Income Capacity | E3: Moderate Income Capacity | F3: Above Moderate Income Capacity | G3: Total Capacity | H3: Site Status | I3: Planned and Approved Lower Income | J3: Planned and Approved Moderate Income | K3: Planned and Approved Above Moderate Income | L3: Total Planned and Approved | M3: Net Capacity Lower Income | N3: Net Capacity Moderate Income | O3: Net Capacity Above Moderate Income | P3: Total Net Capacity | Q3: Notes (APN Change, Changes in Entitlement)
A4: XXX-XXX-XXX-X | D4: 0 | E4: 0 | F4: 0 | G4: =SUM(D4:F4) -> 0 | H4: Completed Project | I4: 0 | J4: 0 | K4: 0 | L4: =I4+J4+K4 -> 0 | M4: =IF($H4<>"Available", I4-D4, "") -> 0 | N4: =IF($H4<>"Available", J4-E4, "") -> 0 | O4: =IF($H4<>"Available", K4-F4, "") -> 0 | P4: =IF($H4<>"Available", L4-G4, "") -> 0 | Q4: The calculation is backwards.
A5: XXX-XXX-XXX-X | D5: 0 | E5: 0 | F5: 0 | G5: =SUM(D5:F5) -> 0 | H5: Completed Project | I5: 1 | J5: 1 | K5: 1 | L5: =I5+J5+K5 -> 3 | M5: 1 | N5: 1 | O5: 1 | P5: 3
A6: XXX-XXX-XXX-X | D6: 0 | E6: 0 | F6: 0 | G6: 0 | H6: Pending Project | I6: 0 | J6: 0 | K6: 0 | L6: 0 | M6: 0 | N6: 0 | O6: 0 | P6: 0
A7: XXX-XXX-XXX-X | D7: 0 | E7: 0 | F7: 0 | G7: 0 | H7: Pending Project | I7: 0 | J7: 0 | K7: 0 | L7: 0 | M7: 0 | N7: 0 | O7: 0 | P7: 0
A8: XXX-XXX-XXX-X | D8: 0 | E8: 0 | F8: 0 | G8: 0 | H8: Pending Project | I8: 0 | J8: 0 | K8: 0 | L8: 0 | M8: 0 | N8: 0 | O8: 0 | P8: 0
A9: XXX-XXX-XXX-X | D9: 0 | E9: 0 | F9: 0 | G9: 0 | H9: Pending Project | I9: 0 | J9: 0 | K9: 0 | L9: 0 | M9: 0 | N9: 0 | O9: 0 | P9: 0
A10: XXX-XXX-XXX-X | D10: 0 | E10: 0 | F10: 0 | G10: 0 | H10: Pending Project | I10: 0 | J10: 0 | K10: 0 | L10: 0 | M10: 0 | N10: 0 | O10: 0 | P10: 0
A11: XXX-XXX-XXX-X | D11: 0 | E11: 0 | F11: 0 | G11: 0 | H11: Pending Project | I11: 0 | J11: 0 | K11: 0 | L11: 0 | M11: 0 | N11: 0 | O11: 0 | P11: 0
A12: XXX-XXX-XXX-X | D12: 0 | E12: 0 | F12: 0 | G12: 0 | H12: Pending Project | I12: 0 | J12: 0 | K12: 0 | L12: 0 | M12: 0 | N12: 0 | O12: 0 | P12: 0
A13: XXX-XXX-XXX-X | D13: 0 | E13: 0 | F13: 0 | G13: 0 | H13: Pending Project | I13: 0 | J13: 0 | K13: 0 | L13: 0 | M13: 0 | N13: 0 | O13: 0 | P13: 0
A14: XXX-XXX-XXX-X | D14: 0 | E14: 0 | F14: 0 | G14: 0 | H14: Pending Project | I14: 0 | J14: 0 | K14: 0 | L14: 0 | M14: 0 | N14: 0 | O14: 0 | P14: 0
A15: XXX-XXX-XXX-X | D15: 0 | E15: 0 | F15: 0 | G15: 0 | H15: Pending Project | I15: 0 | J15: 0 | K15: 0 | L15: 0 | M15: 0 | N15: 0 | O15: 0 | P15: 0
A16: XXX-XXX-XXX-X | D16: 0 | E16: 0 | F16: 0 | G16: 0 | H16: Pending Project | I16: 0 | J16: 0 | K16: 0 | L16: 0 | M16: 0 | N16: 0 | O16: 0 | P16: 0
A17: XXX-XXX-XXX-X | D17: 0 | E17: 0 | F17: 0 | G17: 0 | H17: Pending Project | I17: 0 | J17: 0 | K17: 0 | L17: 0 | M17: 0 | N17: 0 | O17: 0 | P17: 0
A18: XXX-XXX-XXX-X | D18: 0 | E18: 0 | F18: 0 | G18: 0 | H18: Pending Project | I18: 0 | J18: 0 | K18: 0 | L18: 0 | M18: 0 | N18: 0 | O18: 0 | P18: 0
A19: XXX-XXX-XXX-X | D19: 0 | E19: 0 | F19: 0 | G19: 0 | H19: Pending Project | I19: 0 | J19: 0 | K19: 0 | L19: 0 | M19: 0 | N19: 0 | O19: 0 | P19: 0
A20: XXX-XXX-XXX-X | D20: 0 | E20: 0 | F20: 0 | G20: 0 | H20: Pending Project | I20: 0 | J20: 0 | K20: 0 | L20: 0 | M20: 0 | N20: 0 | O20: 0 | P20: 0
A21: XXX-XXX-XXX-X | D21: 0 | E21: 0 | F21: 0 | G21: 0 | H21: Pending Project | I21: 0 | J21: 0 | K21: 0 | L21: 0 | M21: 0 | N21: 0 | O21: 0 | P21: 0
A22: XXX-XXX-XXX-X | D22: 0 | E22: 0 | F22: 0 | G22: 0 | H22: Pending Project | I22: 0 | J22: 0 | K22: 0 | L22: 0 | M22: 0 | N22: 0 | O22: 0 | P22: 0
A23: XXX-XXX-XXX-X | D23: 0 | E23: 0 | F23: 0 | G23: 0 | H23: Pending Project | I23: 0 | J23: 0 | K23: 0 | L23: 0 | M23: 0 | N23: 0 | O23: 0 | P23: 0
A24: XXX-XXX-XXX-X | D24: 0 | E24: 0 | F24: 0 | G24: 0 | H24: Pending Project | I24: 0 | J24: 0 | K24: 0 | L24: 0 | M24: 0 | N24: 0 | O24: 0 | P24: 0
A25: XXX-XXX-XXX-X | D25: 0 | E25: 0 | F25: 0 | G25: 0 | H25: Pending Project | I25: 0 | J25: 0 | K25: 0 | L25: 0 | M25: 0 | N25: 0 | O25: 0 | P25: 0
A26: XXX-XXX-XXX-X | D26: 0 | E26: 0 | F26: 0 | G26: 0 | H26: Pending Project | I26: 0 | J26: 0 | K26: 0 | L26: 0 | M26: 0 | N26: 0 | O26: 0 | P26: 0
A27: XXX-XXX-XXX-X | D27: 0 | E27: 0 | F27: 0 | G27: 0 | H27: Pending Project | I27: 0 | J27: 0 | K27: 0 | L27: 0 | M27: 0 | N27: 0 | O27: 0 | P27: 0

Sheet 3. Development on Other Sites
A1: PROJECTS ON OTHER SITES | D1: Current Entitlement
A2: Assessor Parcel Number | B2: Project Name | C2: Address | D2: Lower Income Capacity | E2: Moderate Income Capacity | F2: Above Moderate Income Capacity | G2: Total Capacity | H2: Site Status | I2: Notes (Approval Date, Status, etc.)
A3: XXX-XXX-XXX-X | D3: 0 | E3: 0 | F3: 0 | G3: =SUM(D3:F3) -> 0 | H3: Pending Project
A4: XXX-XXX-XXX-X | D4: 0 | E4: 0 | F4: 0 | G4: =SUM(D4:F4) -> 0 | H4: Pending Project
A5: XXX-XXX-XXX-X | D5: 0 | E5: 0 | F5: 0 | G5: 0 | H5: Pending Project
A6: XXX-XXX-XXX-X | D6: 0 | E6: 0 | F6: 0 | G6: 0 | H6: Pending Project
A7: XXX-XXX-XXX-X | D7: 1 | E7: 1 | F7: 1 | G7: 3 | H7: Completed Project
A8: XXX-XXX-XXX-X | D8: 0 | E8: 0 | F8: 0 | G8: 0
A9: XXX-XXX-XXX-X | D9: 0 | E9: 0 | F9: 0 | G9: 0
A10: XXX-XXX-XXX-X | D10: 0 | E10: 0 | F10: 0 | G10: 0
A11: XXX-XXX-XXX-X | D11: 0 | E11: 0 | F11: 0 | G11: 0
A12: XXX-XXX-XXX-X | D12: 0 | E12: 0 | F12: 0 | G12: 0
A13: XXX-XXX-XXX-X | D13: 0 | E13: 0 | F13: 0 | G13: 0
A14: XXX-XXX-XXX-X | D14: 0 | E14: 0 | F14: 0 | G14: 0
A15: XXX-XXX-XXX-X | D15: 0 | E15: 0 | F15: 0 | G15: 0
A16: XXX-XXX-XXX-X | D16: 0 | E16: 0 | F16: 0 | G16: 0
A17: XXX-XXX-XXX-X | D17: 0 | E17: 0 | F17: 0 | G17: 0
A18: XXX-XXX-XXX-X | D18: 0 | E18: 0 | F18: 0 | G18: 0
A19: XXX-XXX-XXX-X | D19: 0 | E19: 0 | F19: 0 | G19: 0
A20: XXX-XXX-XXX-X | D20: 0 | E20: 0 | F20: 0 | G20: 0
A21: XXX-XXX-XXX-X | D21: 0 | E21: 0 | F21: 0 | G21: 0
A22: XXX-XXX-XXX-X | D22: 0 | E22: 0 | F22: 0 | G22: 0

Sheet 4. Rezoned Sites
A1: REZONED SITES | B1: Capacity Counted in Housing Element | G1: Current Entitlement
A2: Assessor Parcel Number | B2: Lower Income Capacity | C2: Moderate Income Capacity | D2: Above Moderate Income Capacity | E2: Total Capacity | F2: Site Status | G2: Planned and Approved Lower Income | H2: Planned and Approved Moderate Income | I2: Planned and Approved Above Moderate Income | J2: Total Planned and Approved | K2: Net Capacity Lower Income | L2: Net Capacity Moderate Income | M2: Net Capacity Above Moderate Income | N2: Total Net Capacity | O2: Date of Rezone | P2: Notes
A3: XXX-XXX-XXX-X | B3: 1 | C3: 1 | D3: 0 | E3: =SUM(B3:D3) -> 2 | F3: Completed Project | G3: 1 | H3: 1 | I3: 1 | J3: =G3+H3+I3 -> 3 | K3: =IF($H3<>"Available", G3-B3, "") -> 0 | L3: =IF($H3<>"Available", H3-C3, "") -> 0 | M3: =IF($H3<>"Available", I3-D3, "") -> 1 | N3: =IF($H3<>"Available", J3-E3, "") -> 1
A4: XXX-XXX-XXX-X | B4: 0 | C4: 0 | D4: 0 | E4: =SUM(B4:D4) -> 0 | F4: Available | G4: 0 | H4: 0 | I4: 0 | J4: =G4+H4+I4 -> 0 | K4: 0 | L4: 0 | M4: 0 | N4: 0
A5: XXX-XXX-XXX-X | B5: 0 | C5: 0 | D5: 0 | E5: 0 | F5: Available | G5: 0 | H5: 0 | I5: 0 | J5: 0 | K5: 0 | L5: 0 | M5: 0 | N5: 0
A6: XXX-XXX-XXX-X | B6: 0 | C6: 0 | D6: 0 | E6: 0 | F6: Available | G6: 0 | H6: 0 | I6: 0 | J6: 0 | K6: 0 | L6: 0 | M6: 0 | N6: 0
A7: XXX-XXX-XXX-X | B7: 0 | C7: 0 | D7: 0 | E7: 0 | F7: Available | G7: 0 | H7: 0 | I7: 0 | J7: 0 | K7: 0 | L7: 0 | M7: 0 | N7: 0
A8: XXX-XXX-XXX-X | B8: 0 | C8: 0 | D8: 0 | E8: 0 | F8: Available | G8: 0 | H8: 0 | I8: 0 | J8: 0 | K8: 0 | L8: 0 | M8: 0 | N8: 0
A9: XXX-XXX-XXX-X | B9: 0 | C9: 0 | D9: 0 | E9: 0 | F9: Available | G9: 0 | H9: 0 | I9: 0 | J9: 0 | K9: 0 | L9: 0 | M9: 0 | N9: 0
A10: XXX-XXX-XXX-X | B10: 0 | C10: 0 | D10: 0 | E10: 0 | F10: Available | G10: 0 | H10: 0 | I10: 0 | J10: 0 | K10: 0 | L10: 0 | M10: 0 | N10: 0
A11: XXX-XXX-XXX-X | B11: 0 | C11: 0 | D11: 0 | E11: 0 | F11: Available | G11: 0 | H11: 0 | I11: 0 | J11: 0 | K11: 0 | L11: 0 | M11: 0 | N11: 0
A12: XXX-XXX-XXX-X | B12: 0 | C12: 0 | D12: 0 | E12: 0 | F12: Available | G12: 0 | H12: 0 | I12: 0 | J12: 0 | K12: 0 | L12: 0 | M12: 0 | N12: 0
A13: XXX-XXX-XXX-X | B13: 0 | C13: 0 | D13: 0 | E13: 0 | F13: Available | G13: 0 | H13: 0 | I13: 0 | J13: 0 | K13: 0 | L13: 0 | M13: 0 | N13: 0
A14: XXX-XXX-XXX-X | B14: 0 | C14: 0 | D14: 0 | E14: 0 | F14: Available | G14: 0 | H14: 0 | I14: 0 | J14: 0 | K14: 0 | L14: 0 | M14: 0 | N14: 0
A15: XXX-XXX-XXX-X | B15: 0 | C15: 0 | D15: 0 | E15: 0 | F15: Available | G15: 0 | H15: 0 | I15: 0 | J15: 0 | K15: 0 | L15: 0 | M15: 0 | N15: 0
A16: XXX-XXX-XXX-X | B16: 0 | C16: 0 | D16: 0 | E16: 0 | F16: Available | G16: 0 | H16: 0 | I16: 0 | J16: 0 | K16: 0 | L16: 0 | M16: 0 | N16: 0
A17: XXX-XXX-XXX-X | B17: 0 | C17: 0 | D17: 0 | E17: 0 | F17: Available | G17: 0 | H17: 0 | I17: 0 | J17: 0 | K17: 0 | L17: 0 | M17: 0 | N17: 0
A18: XXX-XXX-XXX-X | B18: 0 | C18: 0 | D18: 0 | E18: 0 | F18: Available | G18: 0 | H18: 0 | I18: 0 | J18: 0 | K18: 0 | L18: 0 | M18: 0 | N18: 0
A19: XXX-XXX-XXX-X | B19: 0 | C19: 0 | D19: 0 | E19: 0 | F19: Available | G19: 0 | H19: 0 | I19: 0 | J19: 0 | K19: 0 | L19: 0 | M19: 0 | N19: 0
A20: XXX-XXX-XXX-X | B20: 0 | C20: 0 | D20: 0 | E20: 0 | F20: Available | G20: 0 | H20: 0 | I20: 0 | J20: 0 | K20: 0 | L20: 0 | M20: 0 | N20: 0
A21: XXX-XXX-XXX-X | B21: 0 | C21: 0 | D21: 0 | E21: 0 | F21: Available | G21: 0 | H21: 0 | I21: 0 | J21: 0 | K21: 0 | L21: 0 | M21: 0 | N21: 0
A22: XXX-XXX-XXX-X | B22: 0 | C22: 0 | D22: 0 | E22: 0 | F22: Available | G22: 0 | H22: 0 | I22: 0 | J22: 0 | K22: 0 | L22: 0 | M22: 0 | N22: 0

Sheet 5. ADUs
A1: ADU Production
B2: Lower Income Capacity | C2: Moderate Income Capacity | D2: Above Moderate Income Capacity | E2: Total Capacity
A3: ADU Projection | B3: 0 | C3: 0 | D3: 0 | E3: =SUM(B3:D3) -> 0
A4: ADU Production from APR
A5: June 30, 2020-End of 2020 | B5: 0 | C5: 0 | D5: 0 | E5: =SUM(B5:D5) -> 0
A6: 2021 | B6: 0 | C6: 0 | D6: 0 | E6: 0
A7: 2022 | B7: 0 | C7: 0 | D7: 0 | E7: 0
A8: 2023 | B8: 0 | C8: 0 | D8: 0 | E8: 0
A9: 2024 | B9: 1 | C9: 1 | D9: 1 | E9: 3
A10: 2025 | B10: 0 | C10: 0 | D10: 0 | E10: 0
A11: 2026 | B11: 0 | C11: 0 | D11: 0 | E11: 0
A12: 2027 | B12: 0 | C12: 0 | D12: 0 | E12: 0
A13: 2028 | B13: 0 | C13: 0 | D13: 0 | E13: 0
A14: Jan 1, 2029-April 15, 2029 | B14: 0 | C14: 0 | D14: 0 | E14: 0
A15: Total Production | B15: =SUM(B5:B14) -> 1 | C15: =SUM(C5:C14) -> 1 | D15: 1 | E15: =SUM(B15:D15) -> 3
A16: ADU Production in Excess of Projection | B16: =IF(B15-B3>0,B15-B3,"") -> 1 | C16: =IF(C15-C3>0,C15-C3,"") -> 1 | D16: =IF(D15-D3>0,D15-D3,"") -> 1 | E16: =IF(E15-E3>0,E15-E3,"") -> 3
